bitfinex/quotes_BTCUSD_20250812
["timestamp","ask_amount","ask_price","bid_price","bid_amount"]
[1754991549918,1.59321458,118700.0,118690.0,0.17159524]
[1754991551053,1.46529458,118700.0,118690.0,0.17159524]
[1754991551256,0.85652224,118700.0,118690.0,0.17159524]
[1754991551706,1.22486841,118700.0,118690.0,0.17159524]
[1754991552706,1.14214516,118700.0,118690.0,0.17159524]
[1754991552909,0.94834617,118700.0,118690.0,0.17159524]
[1754991553109,1.11683816,118700.0,118690.0,0.17361524]
[1754991553758,1.11683816,118700.0,118690.0,0.17159524]
[1754991557190,0.94834617,118700.0,118690.0,0.17159524]
[1754991557627,0.96058612,118700.0,118690.0,0.17159524]
[1754991558055,0.94834617,118700.0,118690.0,0.17361524]
[1754991558267,1.11683816,118700.0,118690.0,0.17361524]
[1754991558834,1.11683816,118700.0,118690.0,0.17159524]
[1754991559237,0.94834617,118700.0,118690.0,0.17159524]
[1754991559612,0.94834617,118700.0,118690.0,0.17361524]
[1754991559873,1.02983178,118700.0,118690.0,0.17361524]
[1754991561901,1.19832377,118700.0,118690.0,0.17361524]
[1754991562582,1.19832377,118700.0,118690.0,0.17159524]
[1754991563387,1.02983178,118700.0,118690.0,0.17159524]
[1754991564040,1.19853377,118700.0,118690.0,0.17159524]
[1754991564423,1.03004178,118700.0,118690.0,0.17159524]
[1754991564638,0.94855617,118700.0,118690.0,0.17361524]
[1754991565740,0.94855617,118700.0,118690.0,0.1732233]
[1754991566390,0.94855617,118700.0,118690.0,0.16692897]
[1754991567567,0.94855617,118700.0,118690.0,0.16490897]
[1754991567970,1.11704816,118700.0,118690.0,0.16490897]
[1754991568176,0.82900884,118700.0,118690.0,0.16490897]
[1754991568400,1.02886302,118700.0,118690.0,0.16692897]
[1754991568602,0.66051685,118700.0,118690.0,0.16692897]
[1754991568799,0.57698,118700.0,118690.0,0.53841514]
[1754991569157,0.94532617,118700.0,118690.0,0.17006897]
[1754991569326,0.94532617,118700.0,118690.0,0.16692897]
[1754991570248,1.11700816,118700.0,118690.0,0.16490897]
[1754991570450,0.83114642,118700.0,118690.0,0.16490897]
[1754991570649,1.19949259,118700.0,118690.0,0.16490897]
[1754991572429,1.56783876,118700.0,118680.0,0.16852001]
[1754991572639,0.49622617,118690.0,118680.0,0.16852001]
[1754991572842,0.50155617,118690.0,118680.0,0.16852001]
[1754991574758,0.50155617,118690.0,118680.0,0.16952001]
[1754991575367,0.50155617,118690.0,118680.0,0.17152001]
[1754991575773,0.50155617,118690.0,118680.0,0.17052001]
[1754991575952,0.13321,118690.0,118680.0,0.17052001]
[1754991576166,0.49936617,118690.0,118680.0,0.17454001]
[1754991580909,0.13102,118690.0,118680.0,0.17454001]
[1754991581114,0.13102,118690.0,118680.0,0.17752001]
[1754991581321,0.12888,118690.0,118680.0,0.17752001]
[1754991582885,0.001,118690.0,118680.0,0.17752001]
[1754991584672,0.001,118690.0,118680.0,0.54586618]
[1754991589276,0.001,118690.0,118680.0,0.17752001]
[1754991589505,0.001,118690.0,118680.0,0.54586618]
[1754991589964,0.001,118690.0,118680.0,0.17752001]
[1754991590267,0.001,118690.0,118680.0,0.91421235]
[1754991590856,0.001,118690.0,118680.0,0.93951535]
[1754991591745,0.001,118690.0,118680.0,1.1322386]
[1754991600598,0.001,118690.0,118680.0,0.39554626]
[1754991600810,0.00601,118690.0,118680.0,0.39256626]
[1754991601074,0.00601,118690.0,118680.0,0.19782301]
[1754991601287,0.37435617,118690.0,118680.0,0.19782301]
[1754991601789,0.00601,118690.0,118680.0,0.19782301]
[1754991602685,0.00500527,118690.0,118680.0,0.19782301]
[1754991602893,0.37335144,118690.0,118680.0,0.19782301]
[1754991603132,0.37335144,118690.0,118680.0,0.17252001]
[1754991603977,0.54185763,118690.0,118680.0,0.17252001]
[1754991605859,0.55041475,118690.0,118680.0,0.004]
[1754991606078,0.61028683,118690.0,118680.0,0.004]
[1754991608679,0.73309537,118690.0,118680.0,0.004]
[1754991608894,0.73309537,118690.0,118680.0,0.17252039]
[1754991612209,0.24194066,118690.0,118680.0,0.17252039]
[1754991613345,0.18206858,118690.0,118680.0,0.17252039]
[1754991613892,0.00500527,118690.0,118680.0,0.17252039]
[1754991614305,0.17351146,118690.0,118680.0,0.17252039]
[1754991616328,0.00500527,118690.0,118680.0,0.17252039]
[1754991617587,0.17351146,118690.0,118680.0,0.17252039]
[1754991619371,0.7471506,118690.0,118680.0,0.17252039]
[1754991620022,0.57864441,118690.0,118680.0,0.17252039]
[1754991620669,0.7471506,118690.0,118680.0,0.17252039]
[1754991624021,0.25599589,118690.0,118680.0,0.17252039]
[1754991624254,0.7471506,118690.0,118680.0,0.17252039]
[1754991625602,0.25599589,118690.0,118680.0,0.17252039]
[1754991625819,0.7471506,118690.0,118680.0,0.17252039]
[1754991626928,0.7471506,118690.0,118680.0,0.004]
[1754991627159,0.82987385,118690.0,118680.0,0.004]
[1754991628331,0.33871914,118690.0,118680.0,0.002]
[1754991628559,0.85518385,118690.0,118680.0,0.002]
[1754991629002,0.85718385,118690.0,118680.0,0.002]
[1754991629209,0.16853459,118670.0,118660.0,0.17736242]
[1754991629419,0.17058459,118670.0,118660.0,0.17934242]
[1754991630697,0.00205,118670.0,118660.0,0.17934242]
[1754991630922,0.56123045,118680.0,118660.0,0.18250242]
[1754991631161,0.57815766,118680.0,118670.0,0.16853459]
[1754991631404,0.58020766,118680.0,118670.0,0.16853459]
[1754991631641,0.58020766,118680.0,118660.0,0.18352242]
[1754991631853,0.58020766,118680.0,118660.0,0.18252242]
[1754991632275,0.58120766,118680.0,118660.0,0.18252242]
[1754991632736,0.70397197,118680.0,118660.0,0.18052242]
[1754991633367,0.70397197,118680.0,118670.0,0.16853459]
[1754991633583,0.16853459,118670.0,118660.0,0.18052242]
[1754991633795,0.16853459,118670.0,118660.0,0.18350242]
[1754991634009,0.68599476,118680.0,118660.0,0.18350242]
[1754991634450,0.68399476,118680.0,118660.0,0.18250242]
[1754991634908,0.68499476,118680.0,118670.0,0.16853459]
[1754991635118,0.68704476,118680.0,118670.0,0.16853459]
[1754991635317,0.75026227,118680.0,118670.0,0.16853459]
[1754991635574,0.75126227,118680.0,118670.0,0.16853459]
[1754991635976,0.68704476,118680.0,118670.0,0.16853459]
[1754991636276,0.68604476,118680.0,118670.0,0.16853459]
[1754991636516,0.68704476,118680.0,118670.0,0.16853459]
[1754991637253,0.68804476,118680.0,118670.0,0.16953459]
[1754991638933,0.65671699,118680.0,118670.0,0.16953459]
[1754991640279,0.16551305,118680.0,118670.0,0.16953459]
[1754991640513,0.65671699,118680.0,118670.0,0.16953459]
[1754991640956,0.65378699,118680.0,118670.0,0.16953459]
[1754991641164,0.65173699,118680.0,118670.0,0.17480459]
[1754991641283,0.65665699,118680.0,118670.0,0.17169459]
[1754991642129,0.73914142,118680.0,118670.0,0.16953459]
[1754991642337,0.73914142,118680.0,118670.0,0.001]
[1754991651446,0.82186467,118680.0,118670.0,0.001]
[1754991651803,0.83931369,118680.0,118670.0,0.001]
[1754991652007,1.33051763,118680.0,118670.0,0.001]
[1754991652224,0.83931369,118680.0,118670.0,0.001]
[1754991653548,0.88993369,118680.0,118670.0,0.001]
[1754991654649,1.13570041,118680.0,118670.0,0.001]
[1754991658231,0.39872975,118680.0,118670.0,0.001]
[1754991658446,1.13570041,118680.0,118670.0,0.001]
[1754991660789,1.16101341,118680.0,118670.0,0.001]
[1754991661223,1.13570041,118680.0,118670.0,0.001]
[1754991661457,1.16101341,118680.0,118670.0,0.001]
[1754991663170,1.13570041,118680.0,118670.0,0.001]
[1754991666949,0.39872975,118680.0,118670.0,0.001]
[1754991667146,1.13570041,118680.0,118670.0,0.001]
[1754991677386,0.39872975,118680.0,118670.0,0.001]
[1754991677604,1.13570041,118680.0,118670.0,0.001]
[1754991680806,0.53701992,118670.0,118660.0,0.08537172]
[1754991681016,0.72332859,118670.0,118660.0,0.08736172]
[1754991681930,0.35484326,118670.0,118660.0,0.08736172]
[1754991682140,0.72332859,118670.0,118660.0,0.08836172]
[1754991683761,0.72432859,118670.0,118660.0,0.08936172]
[1754991684183,0.7032276,118670.0,118660.0,0.08936172]
[1754991684399,0.7051776,118670.0,118660.0,0.08936172]
[1754991684610,0.7083776,118670.0,118660.0,0.08936172]
[1754991686269,0.7032276,118670.0,118660.0,0.08936172]
[1754991687698,0.7083776,118670.0,118660.0,0.08936172]
[1754991688109,0.001,118670.0,118660.0,0.46099705]
[1754991689425,0.001,118670.0,118660.0,0.09251172]
[1754991689666,0.001,118670.0,118660.0,0.46099705]
[1754991695294,0.001,118670.0,118660.0,0.09251172]
[1754991695682,0.001,118670.0,118660.0,0.46099705]
[1754991697354,0.001,118670.0,118660.0,0.09251172]
[1754991698287,0.001,118670.0,118660.0,0.08936172]
[1754991698494,0.91165525,118670.0,118660.0,0.002]
[1754991698720,1.07686293,118670.0,118660.0,0.002]
[1754991699131,0.33989227,118670.0,118660.0,0.002]
[1754991699345,1.07686293,118670.0,118660.0,0.002]
[1754991700417,0.7073776,118670.0,118660.0,0.001]
[1754991700626,0.16854879,118660.0,118650.0,0.0179004]
[1754991700828,1.07580713,118660.0,118650.0,0.0179004]
[1754991701891,1.07580713,118660.0,118650.0,0.01994948]
[1754991702101,1.07680713,118660.0,118650.0,0.02094948]
[1754991703147,1.10212413,118660.0,118650.0,0.02094948]
[1754991703606,1.07680713,118660.0,118650.0,0.02094948]
[1754991703818,0.33983647,118660.0,118650.0,0.02094948]
[1754991704022,1.07680713,118660.0,118650.0,0.02094948]
[1754991704900,0.8312675,118660.0,118650.0,0.02094948]
[1754991705338,0.33983647,118660.0,118650.0,0.02094948]
[1754991705768,0.33983647,118660.0,118650.0,0.02306948]
[1754991706205,0.8312675,118660.0,118650.0,0.02094948]
[1754991706834,1.2772675,118660.0,118650.0,0.02094948]
[1754991708686,0.78583647,118660.0,118650.0,0.18951248]
[1754991709359,0.61728768,118660.0,118650.0,0.18951248]
[1754991709995,0.78583647,118660.0,118650.0,0.18951248]
[1754991710616,0.78583647,118660.0,118650.0,0.18955248]
[1754991712363,0.78583647,118660.0,118650.0,0.19167248]
[1754991714676,0.78583647,118660.0,118650.0,0.18955248]
[1754991715592,0.61220768,118660.0,118650.0,0.19167248]
[1754991715812,0.447,118660.0,118650.0,0.68629351]
[1754991716027,0.001,118660.0,118650.0,0.68629351]
[1754991717324,0.001,118660.0,118650.0,0.19486248]
[1754991717510,0.001,118660.0,118650.0,0.68629351]
[1754991720392,0.001,118660.0,118650.0,0.19486248]
[1754991720602,0.001,118660.0,118650.0,0.68629351]
[1754991720815,0.001,118660.0,118650.0,0.19486248]
[1754991721028,0.001,118660.0,118650.0,0.68629351]
[1754991723653,0.001,118660.0,118650.0,0.19486248]
[1754991723896,0.001,118660.0,118650.0,0.68629351]
[1754991726701,0.001,118660.0,118650.0,0.76901676]
[1754991727100,0.001,118660.0,118650.0,0.79432476]
[1754991733627,0.001,118660.0,118650.0,0.73890711]
[1754991734900,0.001,118660.0,118650.0,0.60481228]
[1754991735161,0.001,118660.0,118650.0,0.77337528]
[1754991735347,0.001,118660.0,118650.0,0.27659425]
[1754991735543,0.001,118660.0,118650.0,0.76802528]
[1754991736448,0.001,118660.0,118650.0,0.35813746]
[1754991736884,0.00405,118660.0,118650.0,0.84956849]
[1754991737567,0.00405,118660.0,118650.0,0.35813746]
[1754991737818,0.00608,118660.0,118650.0,0.84956849]
[1754991738260,0.00405,118660.0,118650.0,0.84956849]
[1754991738928,0.00608,118660.0,118650.0,0.84956849]
[1754991739150,0.00405,118660.0,118650.0,0.84956849]
[1754991740250,0.00405,118660.0,118650.0,0.84322624]
[1754991740469,0.00405,118660.0,118650.0,0.81255067]
[1754991741327,0.00405,118660.0,118650.0,0.77530203]
[1754991741577,0.00608,118660.0,118650.0,0.77530203]
[1754991742426,0.00608,118660.0,118650.0,0.76684361]
[1754991743783,0.00608,118660.0,118650.0,0.74143291]
[1754991744001,0.00608,118660.0,118650.0,0.73287372]
[1754991744207,0.00608,118660.0,118650.0,0.70746302]
[1754991744422,0.00608,118660.0,118650.0,0.67782214]
[1754991745017,0.00405,118660.0,118650.0,0.66413057]
[1754991750352,0.05405,118660.0,118650.0,0.66413057]
[1754991750775,0.05405,118660.0,118650.0,0.90937978]
[1754991751187,0.05405,118660.0,118650.0,0.17269954]
[1754991751422,0.05608,118660.0,118650.0,0.54103966]
[1754991754512,0.05405,118660.0,118650.0,0.90937978]
[1754991755395,0.05608,118660.0,118650.0,0.54103966]
[1754991760500,0.05608,118660.0,118650.0,0.17269954]
[1754991760693,0.05608,118660.0,118650.0,0.45103966]
[1754991760939,0.59296891,118660.0,118650.0,0.08269954]
[1754991761162,0.22462879,118660.0,118650.0,0.08269954]
[1754991761373,0.22462879,118660.0,118650.0,0.05739154]
[1754991761782,0.67545334,118660.0,118650.0,0.05739154]
[1754991762381,0.67545334,118660.0,118640.0,0.57211648]
[1754991762532,0.58996781,118660.0,118640.0,0.20377636]
[1754991762910,0.0032,118650.0,118640.0,0.20377636]
[1754991763145,0.00523,118650.0,118640.0,0.20377636]
[1754991763757,0.00523,118650.0,118640.0,0.20477636]
[1754991763990,0.173793,118650.0,118640.0,0.20377636]
[1754991764210,0.00523,118650.0,118640.0,0.20377636]
[1754991764905,0.00623,118650.0,118640.0,0.20577636]
[1754991765105,0.00623,118650.0,118640.0,0.20677636]
[1754991765683,0.174793,118650.0,118640.0,0.20677636]
[1754991765848,0.21413207,118650.0,118640.0,0.20677636]
[1754991766064,0.174793,118650.0,118640.0,0.2067772]
[1754991774422,0.178233,118650.0,118640.0,0.2067772]
[1754991774834,0.18688973,118650.0,118640.0,0.2067772]
[1754991775245,0.178233,118650.0,118640.0,0.2067772]
[1754991776998,0.186741,118650.0,118640.0,0.2067772]
[1754991778538,0.178233,118650.0,118640.0,0.2067772]
[1754991778946,0.30317072,118650.0,118640.0,0.0382]
[1754991779155,0.30317072,118650.0,118640.0,0.2067772]
[1754991783148,0.13460772,118650.0,118640.0,0.57530355]
[1754991783348,0.00444,118650.0,118640.0,0.9438299]
[1754991784096,0.00764,118650.0,118640.0,0.9438299]
[1754991788760,0.00967,118650.0,118640.0,0.9438299]
[1754991788968,0.00967,118650.0,118640.0,0.57530355]
[1754991790935,0.24044383,118650.0,118640.0,0.2067772]
[1754991791179,0.178233,118650.0,118640.0,0.2067772]
[1754991791395,0.178233,118650.0,118640.0,0.57530355]
[1754991794200,0.178233,118650.0,118640.0,0.2067772]
[1754991794409,0.178233,118650.0,118640.0,0.57530355]
[1754991794850,0.178233,118650.0,118640.0,0.2067772]
[1754991795096,0.70854973,118650.0,118640.0,0.0382]
[1754991798707,0.83148663,118650.0,118640.0,0.0382]
[1754991799545,0.34002338,118650.0,118640.0,0.0382]
[1754991799853,0.34002338,118650.0,118640.0,0.2067772]
[1754991800286,0.34002338,118650.0,118640.0,0.0382]
[1754991802230,0.34002338,118650.0,118640.0,0.2067772]
[1754991808290,0.83148663,118650.0,118640.0,0.0382]
[1754991816406,0.34002338,118650.0,118640.0,0.0382]
[1754991816615,0.83148663,118650.0,118640.0,0.0382]
[1754991818712,0.7086202,118650.0,118640.0,0.0382]
[1754991824296,0.7086202,118650.0,118640.0,0.2067772]
[1754991826805,0.7086202,118650.0,118640.0,0.0382]
[1754991832393,1.07721702,118650.0,118640.0,0.0382]
[1754991832605,1.54066604,118650.0,118640.0,0.0382]
[1754991832807,1.59130604,118650.0,118640.0,0.0382]
[1754991833414,1.61662604,118650.0,118640.0,0.0372]
[1754991833611,1.61562604,118650.0,118640.0,0.0352]
[1754991833840,1.61762604,118650.0,118640.0,0.0352]
[1754991834074,1.62062604,118650.0,118640.0,0.0362]
[1754991837040,1.17462604,118650.0,118640.0,0.0362]
[1754991840525,0.80602922,118650.0,118640.0,0.03624]
[1754991840936,1.17462604,118650.0,118640.0,0.03624]
[1754991841345,0.80602922,118650.0,118640.0,0.03624]
[1754991843524,0.4374324,118650.0,118640.0,0.03624]
[1754991843930,0.75538922,118650.0,118640.0,0.03624]
[1754991844100,0.36934338,118650.0,118640.0,0.2048172]
[1754991844538,0.34199338,118650.0,118640.0,0.2048172]
[1754991846139,0.34199338,118650.0,118640.0,0.03624]
[1754991846341,0.7105902,118650.0,118640.0,0.03624]
[1754991847444,0.7126302,118650.0,118640.0,0.03624]
[1754991851740,0.7104702,118650.0,118640.0,0.03624]
[1754991853398,0.7126002,118650.0,118640.0,0.03624]
[1754991858088,0.34400338,118650.0,118640.0,0.03624]
[1754991858281,0.7126002,118650.0,118640.0,0.03624]
[1754991858492,0.7126002,118650.0,118640.0,0.2048172]
[1754991859079,0.34187338,118650.0,118640.0,0.57341402]
[1754991859309,0.7104702,118650.0,118640.0,0.03624]
[1754991859536,0.7126002,118650.0,118640.0,0.03624]
[1754991861882,0.34400338,118650.0,118640.0,0.03624]
[1754991862050,0.7126002,118650.0,118640.0,0.03624]
[1754991862707,0.34400338,118650.0,118640.0,0.03624]
[1754991865572,0.34400338,118650.0,118640.0,0.2048172]
[1754991874369,0.39464338,118650.0,118640.0,0.2048172]
[1754991874600,0.34400338,118650.0,118640.0,0.2048172]
[1754991884837,0.71255457,118650.0,118640.0,0.2048172]
[1754991893125,0.34400338,118650.0,118640.0,0.2048172]
[1754991893305,0.71255457,118650.0,118640.0,0.2048172]
[1754991897282,0.34400338,118650.0,118640.0,0.2048172]
[1754991897467,0.71255457,118650.0,118640.0,0.2048172]
[1754991899893,0.34400338,118650.0,118640.0,0.2048172]
[1754991900093,0.71255457,118650.0,118640.0,0.2048172]
[1754991902171,0.34400338,118650.0,118640.0,0.2048172]
[1754991902367,0.71255457,118650.0,118640.0,0.2048172]
[1754991902633,0.34400338,118650.0,118640.0,0.2048172]
[1754991902822,0.71255457,118650.0,118640.0,0.2048172]
[1754991903389,0.34400338,118650.0,118640.0,0.2048172]
[1754991903598,0.71255457,118650.0,118640.0,0.2048172]
[1754991905949,0.34400338,118650.0,118640.0,0.2048172]
[1754991906161,0.71255457,118650.0,118640.0,0.2048172]
[1754991906582,0.34400338,118650.0,118640.0,0.2048172]
[1754991906994,0.71255457,118650.0,118640.0,0.2048172]
[1754991918466,0.01365,118650.0,118640.0,0.57336839]
[1754991918666,0.01152,118650.0,118640.0,0.57336839]
[1754991918892,0.00844,118650.0,118640.0,0.94191958]
[1754991919103,0.00844,118650.0,118640.0,0.2048172]
[1754991919430,0.00844,118650.0,118640.0,0.57336839]
[1754991919844,0.01163,118650.0,118640.0,0.57336839]
[1754991919960,0.01163,118650.0,118640.0,0.2048172]
[1754991920178,0.01163,118650.0,118640.0,0.57336839]
[1754991923442,0.01163,118650.0,118640.0,0.58197574]
[1754991924716,0.01163,118650.0,118640.0,0.57336839]
[1754991925284,0.01163,118650.0,118640.0,0.2048172]
[1754991925494,0.01163,118650.0,118640.0,0.57336839]
[1754991925698,0.01163,118650.0,118640.0,0.2048172]
[1754991925950,0.0136,118650.0,118640.0,0.2048172]
[1754991926251,0.63343744,118650.0,118640.0,0.03624]
[1754991926443,0.69351234,118650.0,118640.0,0.2048172]
[1754991926647,0.69351234,118650.0,118640.0,0.03624]
[1754991930378,1.06206353,118650.0,118640.0,0.03624]
[1754991930593,0.69351234,118650.0,118640.0,0.03624]
[1754991931658,1.13951234,118650.0,118640.0,0.03624]
[1754991932368,1.50806353,118650.0,118640.0,0.03624]
[1754991932596,1.60017255,118650.0,118640.0,0.03624]
[1754991932812,1.62549255,118650.0,118640.0,0.03624]
[1754991933665,1.57485255,118650.0,118640.0,0.03624]
[1754991941422,1.63485255,118650.0,118640.0,0.03624]
[1754991942068,0.89775017,118650.0,118640.0,0.03624]
[1754991942517,1.63485255,118650.0,118640.0,0.03624]
[1754991943564,1.23949255,118650.0,118640.0,0.03624]
[1754991944237,1.21547255,118650.0,118640.0,0.03624]
[1754991948092,0.47837017,118650.0,118640.0,0.03624]
[1754991948309,0.84692136,118650.0,118640.0,0.03624]
[1754991948535,0.40512115,118650.0,118640.0,0.2048172]
[1754991948752,0.40512115,118650.0,118640.0,0.57336839]
[1754991948753,0.25972625,118650.0,118640.0,0.57336839]
[1754991948972,0.00844,118650.0,118640.0,0.94191958]
[1754991949197,0.00844,118650.0,118640.0,0.96453958]
[1754991950722,0.00844,118650.0,118640.0,0.23609475]
[1754991950941,0.00844,118650.0,118640.0,0.72730576]
[1754991951716,0.00844,118650.0,118640.0,0.2274372]
[1754991951956,0.00844,118650.0,118640.0,0.71864821]
[1754991953282,0.00844,118650.0,118640.0,0.72689998]
[1754991953487,0.00844,118650.0,118640.0,0.71864821]
[1754991958006,0.00844,118650.0,118640.0,0.69602821]
[1754991960604,0.0084,118650.0,118640.0,0.69602821]
[1754991968129,0.0084,118650.0,118640.0,0.2048172]
[1754991968308,0.0084,118650.0,118640.0,0.69602821]
[1754991970527,0.01155,118650.0,118640.0,0.69602821]
[1754991973880,0.01155,118650.0,118640.0,0.2048172]
[1754991974068,0.01155,118650.0,118640.0,0.69602821]
[1754991974667,0.01155,118650.0,118640.0,0.57327836]
[1754991976865,0.01357,118650.0,118640.0,0.57327836]
[1754991978103,0.01155,118650.0,118640.0,0.57327836]
[1754991980046,0.01155,118650.0,118640.0,0.2048172]
[1754991980286,0.01357,118650.0,118640.0,0.2048172]
[1754991980516,0.01357,118650.0,118640.0,0.57327836]
[1754991983903,0.01357,118650.0,118640.0,0.2048172]
[1754991984187,0.01357,118650.0,118640.0,0.57327836]
[1754991984391,0.01357,118650.0,118640.0,0.2048172]
[1754991985854,0.01357,118650.0,118640.0,0.57327836]
[1754991988877,0.01357,118650.0,118640.0,0.2048172]
[1754991989099,0.01357,118650.0,118640.0,0.57327836]
[1754991991858,0.01155,118650.0,118640.0,0.57327836]
[1754991992281,0.0084,118650.0,118640.0,0.57327836]
[1754991993101,0.01155,118650.0,118640.0,0.57327836]
[1754991993574,0.01357,118650.0,118640.0,0.57327836]
[1754991998640,0.01155,118650.0,118640.0,0.57327836]
[1754992000235,0.01155,118650.0,118640.0,0.2048172]
[1754992000497,0.01155,118650.0,118640.0,0.57327836]
[1754992003186,0.0084,118650.0,118640.0,0.2048172]
[1754992003401,0.0084,118650.0,118640.0,0.94173952]
[1754992003938,0.0084,118650.0,118640.0,1.04977377]
[1754992004150,0.0084,118650.0,118640.0,1.08977377]
[1754992004567,0.0034,118650.0,118640.0,1.08877377]
[1754992005193,0.0034,118650.0,118640.0,0.35185145]
[1754992005356,0.0034,118650.0,118640.0,1.08877377]
[1754992005569,0.0034,118650.0,118640.0,0.35185145]
[1754992005777,0.0034,118650.0,118640.0,1.08877377]
[1754992006487,0.0044,118650.0,118640.0,1.08977377]
[1754992006909,0.0044,118650.0,118640.0,1.11518678]
[1754992007315,0.00733,118650.0,118640.0,1.11518678]
[1754992008750,0.0044,118650.0,118640.0,1.11518678]
[1754992013272,0.0044,118650.0,118640.0,0.37826446]
[1754992013477,0.0044,118650.0,118640.0,1.11518678]
[1754992020727,0.00436,118650.0,118640.0,1.11518678]
[1754992023712,0.00729,118650.0,118640.0,1.11518678]
[1754992025213,0.00436,118650.0,118640.0,1.11518678]
[1754992025638,0.00729,118650.0,118640.0,1.11518678]
[1754992034821,0.00926,118650.0,118640.0,0.37826446]
[1754992035026,0.00926,118650.0,118640.0,0.74672562]
[1754992035182,0.00926,118650.0,118640.0,1.11518678]
[1754992036464,0.00926,118650.0,118640.0,0.37826446]
[1754992036663,0.00926,118650.0,118640.0,1.11518678]
[1754992036835,0.00926,118650.0,118640.0,0.74672562]
[1754992040400,0.00926,118650.0,118640.0,0.37826446]
[1754992040610,0.00926,118650.0,118640.0,0.74672562]
[1754992043180,0.00926,118650.0,118640.0,0.29554121]
[1754992043386,0.00926,118650.0,118640.0,0.66400237]
[1754992043589,0.37772116,118650.0,118640.0,0.2048172]
[1754992047197,0.38618395,118650.0,118640.0,0.2048172]
[1754992051813,0.00926,118650.0,118640.0,0.2048172]
[1754992052009,0.37772116,118650.0,118640.0,0.2048172]
[1754992055631,0.54628416,118650.0,118640.0,0.2048172]
[1754992055855,0.55491207,118650.0,118640.0,0.2048172]
[1754992056694,0.62442451,118650.0,118640.0,0.2048172]
[1754992056896,0.37772116,118650.0,118640.0,0.2048172]
[1754992057615,0.00926,118650.0,118640.0,0.2048172]
[1754992057832,0.37772116,118650.0,118640.0,0.2048172]
[1754992061926,0.00926,118650.0,118640.0,0.57327836]
[1754992062168,0.00436,118650.0,118640.0,0.94173952]
[1754992062378,0.00436,118650.0,118640.0,0.2048172]
[1754992062600,0.00436,118650.0,118640.0,0.57327836]
[1754992063848,0.00743,118650.0,118640.0,0.57327836]
[1754992064262,0.00436,118650.0,118640.0,0.57327836]
[1754992065293,0.00436,118650.0,118640.0,0.94173952]
[1754992065704,0.00312354,118650.0,118640.0,0.57327836]
[1754992066121,0.00619354,118650.0,118640.0,0.57327836]
[1754992066995,0.00312354,118650.0,118640.0,0.94173952]
[1754992067198,0.00312354,118650.0,118640.0,1.12446277]
[1754992067401,0.00312354,118650.0,118640.0,1.14977177]
[1754992068670,0.00312354,118650.0,118640.0,0.90399715]
[1754992070562,0.00312354,118650.0,118640.0,0.92985272]
[1754992072482,1e-08,118650.0,118640.0,1.42100042]
[1754992073961,0.0500489,118660.0,118650.0,0.168563]
[1754992074197,0.0500489,118660.0,118650.0,0.86243395]
[1754992074409,0.0531189,118660.0,118650.0,0.86247395]
[1754992075633,0.0531189,118660.0,118650.0,0.88778095]
[1754992076043,0.0541189,118660.0,118650.0,0.88978095]
[1754992076675,0.0541189,118660.0,118650.0,0.89078095]
[1754992080126,0.0562289,118660.0,118650.0,0.89078095]
[1754992080916,0.0561889,118660.0,118650.0,0.89078095]
[1754992081531,0.0561889,118660.0,118650.0,0.39963325]
[1754992081736,0.0561889,118660.0,118650.0,0.31691]
[1754992081911,0.5473366,118660.0,118650.0,0.19691]
[1754992082274,0.5473366,118660.0,118650.0,0.171603]
[1754992083541,0.0561889,118660.0,118650.0,0.171603]
[1754992090786,0.0540789,118660.0,118650.0,0.171603]
[1754992091200,0.0561589,118660.0,118650.0,0.171603]
[1754992096144,0.0569989,118660.0,118650.0,0.171603]
[1754992097742,0.0549189,118660.0,118650.0,0.6627507]
[1754992098811,0.0569989,118660.0,118650.0,0.6627507]
[1754992098988,0.0569989,118660.0,118650.0,0.171603]
[1754992102397,0.0569989,118660.0,118650.0,0.1710625]
[1754992105469,0.5481466,118660.0,118650.0,0.1710625]
[1754992106713,0.0569989,118660.0,118650.0,0.1710625]
[1754992106902,0.0569989,118660.0,118650.0,0.14460047]
[1754992107369,0.5481466,118660.0,118650.0,0.14460047]
[1754992108160,0.5481466,118660.0,118650.0,0.11921859]
[1754992108368,0.5481466,118660.0,118650.0,0.09383671]
[1754992108576,0.5481466,118660.0,118650.0,0.06845483]
[1754992108793,0.5481466,118660.0,118650.0,0.04307295]
[1754992109018,0.5481466,118660.0,118650.0,0.00304]
[1754992109288,0.5481466,118660.0,118650.0,0.171603]
[1754992109485,0.5481466,118660.0,118650.0,0.12083924]
[1754992109705,0.78836356,118660.0,118640.0,0.2290862]
[1754992109918,0.4911477,118650.0,118640.0,0.2037772]
[1754992110170,0.4962977,118650.0,118640.0,0.2037772]
[1754992110515,0.00515,118650.0,118640.0,0.20301759]
[1754992111283,0.6658607,118650.0,118640.0,0.19952659]
[1754992111484,0.74834513,118650.0,118640.0,0.16804197]
[1754992112516,0.57978213,118650.0,118640.0,0.16804197]
[1754992112682,0.57978213,118650.0,118640.0,0.16904197]
[1754992113209,0.00615,118650.0,118640.0,0.16904197]
[1754992113913,0.4972977,118650.0,118640.0,0.16904197]
[1754992114566,0.00615,118650.0,118640.0,0.16904197]
[1754992114947,0.00615,118650.0,118640.0,0.13673784]
[1754992115563,0.00615,118650.0,118640.0,0.10525439]
[1754992116399,0.00615,118650.0,118640.0,0.10220487]
[1754992116530,0.00615,118650.0,118640.0,0.07682131]
[1754992116733,0.00615,118650.0,118640.0,0.0766585]
[1754992118074,0.174713,118650.0,118640.0,0.0766585]
[1754992119155,0.74834513,118650.0,118640.0,0.0766585]
[1754992119549,0.75662158,118650.0,118640.0,0.0766585]
[1754992120705,0.26547388,118650.0,118640.0,0.0766585]
[1754992120909,0.75662158,118650.0,118640.0,0.0766585]
[1754992121784,0.26547388,118650.0,118640.0,0.0766585]
[1754992121984,0.75662158,118650.0,118640.0,0.0766585]
[1754992129180,0.74834513,118650.0,118640.0,0.0766585]
[1754992131698,0.75690724,118650.0,118640.0,0.0766585]
[1754992132801,0.63433676,118650.0,118640.0,0.0766585]
[1754992137889,0.62577465,118650.0,118640.0,0.0766585]
[1754992138535,0.25719743,118650.0,118640.0,0.0766585]
[1754992138735,0.62577465,118650.0,118640.0,0.0766585]
[1754992140543,0.25719743,118650.0,118640.0,0.0766585]
[1754992140749,0.62577465,118650.0,118640.0,0.0766585]
[1754992140951,0.7084979,118650.0,118640.0,0.003]
[1754992141840,0.7084979,118650.0,118640.0,0.1715772]
[1754992142060,0.7084979,118650.0,118640.0,0.1705772]
[1754992142421,0.7094979,118650.0,118640.0,0.1705772]
[1754992142623,0.7084979,118650.0,118640.0,0.1685772]